bitfinex-derivatives/quotes_ETHF0:USTF0_20241023
["timestamp","ask_amount","ask_price","bid_price","bid_amount"]
[1729701080597,4.51274913,2518.3,2517.9,44.62]
[1729701080890,0.39737,2518.2,2518.1,0.39737]
[1729701081095,0.39739,2518.1,2518.0,0.39739]
[1729701081298,0.39739,2518.1,2518.0,0.39738]
[1729701081501,4.91013913,2518.1,2518.0,0.39738]
[1729701081804,4.51274913,2518.1,2518.0,0.39738]
[1729701082093,3.2078,2518.4,2517.9,41.1974]
[1729701082094,0.3974,2518.0,2517.9,41.1974]
[1729701082295,0.39737,2518.2,2518.1,0.39737]
[1729701082686,4.61043563,2518.2,2518.1,0.39737]
[1729701082890,8.18426563,2518.2,2517.0,3.2078]
[1729701083101,0.39746,2517.7,2517.6,0.39745]
[1729701083288,3.2078,2517.9,2517.2,6.75378]
[1729701083289,0.39747,2517.6,2517.5,0.39746]
[1729701083489,0.39747,2517.6,2517.2,6.75378]
[1729701083490,0.3975,2517.4,2517.3,0.39749]
[1729701083786,3.2078,2517.6,2517.2,1.94]
[1729701083787,0.39748,2517.5,2517.4,0.39748]
[1729701084191,0.39749,2517.4,2517.3,40.8]
[1729701084394,4.23915378,2517.5,2517.3,40.8]
[1729701084697,4.23915378,2517.4,2517.3,41.19751]
[1729701084892,4.28412821,2517.5,2517.4,0.39749]
[1729701085090,3.2078,2517.6,2517.5,0.39747]
[1729701085287,0.39742,2517.9,2517.8,0.39743]
[1729701085494,3.2078,2517.9,2517.8,0.39743]
[1729701085693,7.44676571,2517.9,2517.8,0.39743]
[1729701086100,3.57190647,2518.5,2518.0,0.99347]
[1729701086101,3.2078,2518.5,2518.0,0.99347]
[1729701086303,3.2078,2518.5,2518.4,0.39733]
[1729701086888,3.2078,2518.5,2518.4,41.19733]
[1729701087088,2.2078,2518.5,2518.4,41.19733]
[1729701087290,0.3973,2518.7,2518.6,0.3973]
[1729701087601,4.30668371,2518.5,2518.4,40.8]
[1729701087801,4.30668371,2518.5,2518.4,41.19733]
[1729701088103,0.39729,2518.7,2518.6,0.3973]
[1729701088299,3.2078,2519.0,2518.4,40.8]
[1729701088601,4.30668371,2518.7,2518.4,40.8]
[1729701088793,4.98152684,2518.9,2518.8,0.39727]
[1729701088998,0.39726,2518.9,2518.8,0.39727]
[1729701089197,8.55466684,2518.9,2518.4,40.8]
[1729701089395,0.39731,2518.6,2518.5,0.3973]
[1729701089699,0.3973,2518.7,2518.6,0.3973]
[1729701089897,0.39732,2518.6,2518.5,0.39731]
[1729701090104,0.39732,2518.5,2518.4,41.19733]
[1729701090399,0.39732,2518.5,2518.4,40.8]
[1729701090596,0.39732,2518.5,2518.0,0.99349]
[1729701090597,0.39735,2518.4,2518.3,0.39735]
[1729701090902,4.61346661,2518.4,2518.3,0.39735]
[1729701091501,4.21611661,2518.4,2518.3,0.39735]
[1729701091698,4.61344661,2518.4,2518.3,0.39735]
[1729701091898,0.39733,2518.4,2518.3,0.39735]
[1729701092191,4.82084743,2518.4,2518.3,0.39735]
[1729701092905,4.42351743,2518.4,2518.3,0.39735]
[1729701093299,4.59321783,2518.6,2518.5,0.39732]
[1729701093499,4.59321783,2518.5,2518.4,0.39732]
[1729701093697,4.39346897,2518.6,2518.4,0.39732]
[1729701093898,0.39735,2518.4,2518.3,0.39734]
[1729701094296,0.39736,2518.3,2518.2,0.39736]
[1729701094498,7.57636,2518.3,2518.2,0.39736]
[1729701094807,12.11197222,2518.3,2518.2,0.39736]
[1729701095004,0.39736,2518.2,2518.1,40.8]
[1729701095200,0.39736,2518.2,2517.8,0.39742]
[1729701095201,0.39743,2517.9,2517.8,0.39742]
[1729701095503,4.53561222,2517.9,2517.6,0.99364]
[1729701095695,4.53561222,2517.9,2517.8,0.39743]
[1729701095897,0.3974,2518.0,2517.9,0.39741]
[1729701096098,3.2078,2518.3,2517.6,40.8]
[1729701096099,4.5795631,2518.2,2517.6,40.8]
[1729701096300,3.2078,2518.3,2517.7,0.99361]
[1729701096511,3.2078,2518.3,2518.2,0.39736]
[1729701096699,3.60515,2518.3,2518.2,0.39736]
[1729701096895,12.00280669,2518.3,2518.2,0.39736]
[1729701097599,0.39738,2518.2,2518.1,0.39737]
[1729701097801,0.39743,2517.9,2517.8,0.39742]
[1729701098116,0.39743,2517.9,2517.5,0.39746]
[1729701098117,0.39747,2517.6,2517.5,0.39746]
[1729701098303,0.3975,2517.4,2517.3,0.39749]
[1729701098601,4.64842127,2517.6,2517.5,0.39748]
[1729701098903,4.52648424,2517.4,2517.3,40.8]
[1729701099112,0.39748,2517.5,2517.3,41.19751]
[1729701099401,3.2078,2517.7,2517.6,0.39746]
[1729701099606,3.6052,2518.0,2517.9,0.39739]
[1729701099797,3.2078,2518.0,2517.5,3.82]
[1729701099998,0.39742,2517.9,2517.8,0.39741]
[1729701100194,3.56047629,2518.0,2517.5,7.0278]
[1729701100401,3.56047629,2518.0,2517.7,0.39743]
[1729701100402,0.39744,2517.8,2517.7,0.39743]
[1729701100812,4.55208975,2517.8,2517.7,0.39743]
[1729701101011,8.12664975,2517.8,2517.3,44.62]
[1729701101203,4.55208975,2517.8,2517.7,0.39744]
[1729701101505,8.52408975,2517.8,2517.7,0.39744]
[1729701101703,0.39745,2517.7,2517.6,0.39745]
[1729701102107,4.44645874,2517.7,2517.6,0.39745]
[1729701102308,4.84389874,2517.7,2517.6,0.39745]
[1729701102706,0.39744,2517.7,2517.6,0.39745]
[1729701102904,4.76981904,2517.7,2517.6,0.39745]
[1729701105711,4.37237904,2517.7,2517.6,0.39745]
[1729701106015,3.46483651,2518.3,2517.7,0.99361]
[1729701106218,3.06747651,2518.3,2517.9,4.81353]
[1729701106515,4.26107159,2517.9,2517.8,3.60523]
[1729701106703,0.3974,2518.0,2517.9,0.39741]
[1729701106905,0.39741,2517.9,2517.8,3.60522]
[1729701107102,0.39741,2517.9,2517.8,3.2078]
[1729701107307,4.55205857,2517.9,2517.8,3.2078]
[1729701107709,4.55205857,2517.9,2517.8,3.60523]
[1729701107710,7.61953508,2517.9,2517.8,3.60523]
[1729701109309,7.61953508,2517.9,2517.8,3.2078]
[1729701109310,11.59153508,2517.9,2517.8,3.2078]
[1729701109518,0.39744,2517.8,2517.7,0.39743]
[1729701109911,4.17426418,2517.8,2517.7,0.39744]
[1729701110119,2.10487651,2517.9,2517.8,0.39743]
[1729701110324,4.08217882,2518.2,2518.1,0.39738]
[1729701110515,0.77983118,2518.3,2518.2,0.39736]
[1729701110712,4.29588353,2518.5,2518.4,0.39733]
[1729701110914,3.2078,2519.1,2519.0,0.39724]
[1729701111213,3.2078,2519.1,2519.0,4.21724]
[1729701111818,7.1774,2519.1,2518.5,3.82]
[1729701112026,7.78145988,2519.1,2518.5,3.82]
[1729701112322,7.78145988,2519.1,2518.6,0.3973]
[1729701112323,0.39729,2518.7,2518.6,0.3973]
[1729701112613,3.2078,2518.8,2518.7,0.39729]
[1729701113018,7.79178846,2518.8,2518.7,0.39729]
[1729701113823,8.18905846,2518.8,2518.7,0.39729]
[1729701114519,7.79178846,2518.8,2518.7,0.39729]
[1729701114719,8.18905846,2518.8,2518.7,0.39729]
[1729701114922,7.79178846,2518.8,2518.7,0.39729]
[1729701115127,7.79178846,2518.8,2518.7,4.36769]
[1729701115314,1.9553,2519.5,2518.7,4.36769]
[1729701115315,3.2078,2519.2,2519.1,0.39722]
[1729701115824,7.52220722,2519.2,2519.1,0.39722]
[1729701116221,7.91941722,2519.2,2519.1,0.39722]
[1729701116523,7.52220722,2519.2,2518.7,3.82]
[1729701116722,0.39725,2519.0,2518.9,0.39724]
[1729701116920,0.39729,2518.8,2518.7,0.39728]
[1729701117223,0.39726,2518.9,2518.8,0.39726]
[1729701117428,0.39729,2518.8,2518.7,0.39728]
[1729701117626,4.56178382,2518.8,2518.7,0.39728]
[1729701117818,0.39729,2518.8,2518.7,0.39728]
[1729701118121,4.72839214,2518.8,2518.7,0.39728]
[1729701118520,4.72837214,2518.8,2518.7,0.39728]
[1729701120221,9.29471214,2518.8,2518.4,40.8]
[1729701120526,3.2078,2518.6,2517.6,3.82]
[1729701120826,11.5386,2518.7,2518.0,0.39739]
[1729701120827,0.39739,2518.1,2518.0,0.39739]
[1729701121123,4.45429902,2518.1,2517.6,40.8]
[1729701121323,0.39748,2517.5,2517.4,0.0993]
[1729701121727,0.39751,2517.3,2517.2,0.39751]
[1729701121923,0.02615037,2517.5,2517.0,3.2078]
[1729701122118,0.39754,2517.2,2517.1,0.39754]
[1729701122631,8.82196318,2517.2,2517.1,0.39754]
[1729701122920,8.82196318,2517.2,2517.1,8.19034]
[1729701122921,4.45162318,2517.2,2517.1,8.19034]
[1729701123128,0.39751,2517.3,2517.2,0.39751]
[1729701123430,4.35487159,2517.3,2517.2,0.39751]
[1729701123629,3.6053,2517.4,2517.3,0.39751]
[1729701123927,7.88837308,2517.4,2517.3,0.39751]
[1729701124118,7.49087308,2517.4,2517.3,0.39751]
[1729701124323,4.28307308,2517.4,2517.3,0.39751]
[1729701124623,4.68055308,2517.5,2517.0,4.20167]
[1729701124830,4.68055308,2517.5,2517.4,0.39749]
[1729701125024,1.9141,2517.6,2517.0,4.20167]
[1729701125224,2.31157,2517.6,2517.5,0.39748]
[1729701125627,6.28851088,2517.6,2517.5,0.39748]
[1729701125828,4.37441088,2517.6,2517.5,0.39748]
[1729701126024,4.37441088,2517.6,2517.4,3.82]
[1729701126227,4.77187088,2517.6,2517.5,0.39748]
[1729701126433,0.39746,2517.6,2517.5,0.39748]
[1729701126726,4.24305574,2517.6,2517.5,41.19748]
[1729701127127,4.15567379,2517.7,2517.6,0.39746]
[1729701127327,3.60524,2517.8,2517.5,40.8]
[1729701127328,3.2078,2517.8,2517.5,40.8]
[1729701127527,4.55312379,2517.7,2517.6,0.39745]
[1729701127721,4.15567379,2517.7,2517.6,0.39746]
[1729701127923,0.39746,2517.6,2517.5,40.8]
[1729701128326,0.39746,2517.6,2516.9,4.2017]
[1729701128327,8.28852866,2517.6,2516.9,3.2078]
[1729701128517,8.28852866,2517.6,2517.1,0.39754]
[1729701128518,3.2078,2517.4,2517.1,0.39754]
[1729701128723,0.39751,2517.3,2517.2,0.39751]
[1729701128925,4.71947544,2517.3,2517.2,40.8]
[1729701129126,10.49257544,2517.3,2517.2,40.8]
[1729701129326,0.39754,2517.2,2517.0,0.39755]
[1729701129632,4.32196544,2517.1,2517.0,0.39755]
[1729701129832,4.32196544,2517.1,2517.0,41.19755]
[1729701132236,4.71950544,2517.1,2517.0,41.19755]
[1729701132532,4.32196544,2517.1,2517.0,41.19755]
[1729701133126,4.32196544,2517.1,2516.7,0.99401]
[1729701133127,8.29476544,2517.1,2516.4,0.0993]
[1729701133327,7.0278,2516.5,2515.8,3.2078]
[1729701133534,3.2078,2516.2,2515.6,3.82]
[1729701133735,3.60549,2516.2,2515.8,3.2078]
[1729701133932,4.19966202,2516.1,2516.0,0.39771]
[1729701134733,3.2078,2516.2,2516.0,3.9744]
[1729701135039,3.2078,2516.2,2516.1,0.3977]
[1729701136035,1.8953,2516.4,2516.1,4.3721]
[1729701136333,1.8953,2516.4,2516.3,0.39767]
[1729701136533,2.29295,2516.4,2516.3,0.39767]
[1729701136734,4.16852362,2516.3,2516.2,0.39768]
[1729701137040,0.39767,2516.3,2516.2,41.19768]
[1729701137335,4.68355553,2516.3,2516.2,41.19768]
[1729701137725,4.68355553,2516.3,2516.2,40.8]
[1729701137930,4.68355553,2516.3,2515.7,0.13471826]
[1729701137931,10.21248553,2516.3,2515.7,0.13471826]
[1729701138133,10.21248553,2516.3,2515.6,3.2078]
[1729701138134,6.23808553,2516.3,2515.6,3.2078]
[1729701138332,0.39775,2515.8,2515.7,0.39776]
[1729701138530,0.39772,2516.0,2515.8,0.39773]
[1729701138732,0.39773,2515.9,2515.8,0.39773]
[1729701138931,4.4290246,2515.9,2515.8,0.39774]
[1729701139133,4.4290246,2515.9,2515.2,0.0993]
[1729701139134,8.0056946,2515.9,2515.2,0.0993]
[1729701139434,8.0056946,2515.9,2515.8,0.39774]
[1729701139435,4.4290346,2515.9,2515.8,0.39774]
[1729701139642,4.4290346,2515.9,2515.7,0.39775]
[1729701140031,4.4290346,2515.9,2515.8,0.39774]
[1729701140230,0.39778,2515.6,2515.5,40.8]
[1729701140434,4.0312946,2515.9,2515.3,0.39781]
[1729701140435,3.2078,2515.7,2515.3,0.39781]
[1729701140645,1.8115,2515.5,2514.7,8.0226]
[1729701140934,4.60913894,2515.4,2515.3,0.39782]
[1729701141537,0.39783,2515.3,2515.2,0.39783]
[1729701141743,4.21132894,2515.4,2515.0,0.39786]
[1729701141744,0.39786,2515.1,2515.0,0.39786]
[1729701142033,4.14885699,2515.3,2514.8,40.8]
[1729701142336,0.39788,2515.0,2514.8,41.19789]
[1729701142536,7.35665699,2515.1,2514.9,0.39788]
[1729701142845,7.35665699,2515.1,2514.8,40.8]
[1729701142846,4.14885699,2514.9,2514.8,41.1979]
[1729701143134,3.2078,2515.1,2514.9,0.39789]
[1729701143343,0.39787,2515.0,2514.9,0.39789]
[1729701143642,4.15787914,2515.0,2514.8,40.8]
[1729701143837,0.39789,2514.9,2514.8,40.8]
[1729701144044,0.39795,2514.5,2514.4,3.2078]
[1729701144241,0.39802,2514.1,2514.0,0.39803]
[1729701144448,3.2078,2514.2,2514.1,0.39801]
[1729701144741,3.2078,2514.2,2513.1,0.13650809]
[1729701144742,11.29344695,2514.2,2513.1,0.13650809]
[1729701144945,11.29344695,2514.2,2513.8,0.39805]
[1729701144946,0.39804,2514.0,2513.8,0.39805]
[1729701145141,9.51232,2514.1,2513.9,0.39804]
[1729701145349,9.51232,2514.1,2512.9,3.3072]
[1729701145350,4.35220558,2513.9,2512.9,3.3072]
[1729701145636,3.82,2514.0,2512.9,3.3072]
[1729701145637,3.82,2513.4,2512.9,3.2078]
[1729701145837,3.82,2513.4,2512.4,0.39827]
[1729701145838,0.39823,2512.8,2512.4,0.39827]
[1729701146039,0.39825,2512.6,2512.1,0.39832]
[1729701146233,0.069,2512.7,2511.7,3.2078]
[1729701146234,9.1167,2512.5,2511.7,3.2078]
[1729701146436,7.0278,2511.8,2511.3,0.0995]
[1729701146637,3.2078,2511.5,2511.4,4.21844]
[1729701146939,6.1313963,2512.5,2511.4,3.82]
[1729701146940,3.2078,2512.2,2511.4,3.82]
[1729701147142,4.39809196,2512.3,2512.2,0.39831]
[1729701147432,0.99516,2513.9,2512.4,0.39828]
[1729701147433,3.2078,2512.5,2512.4,0.39828]
[1729701147838,0.99503,2514.2,2512.4,0.39828]
[1729701147840,3.78660011,2512.7,2512.6,0.39825]
[1729701148045,3.2078,2513.5,2512.6,3.82]
[1729701148347,4.60552011,2513.4,2513.3,0.39813]
[1729701148546,4.60552011,2513.4,2513.3,0.39814]
[1729701148736,4.60552011,2513.4,2513.3,4.37654]
[1729701149137,4.60552011,2513.4,2513.3,0.39814]
[1729701149440,3.2078,2513.5,2513.4,0.39813]
[1729701149742,7.62919333,2513.5,2513.4,0.39813]
[1729701150248,12.00571333,2513.5,2513.3,40.8]
[1729701150432,7.62919333,2513.5,2513.3,40.8]
[1729701150637,7.62919333,2513.5,2513.4,0.39813]
[1729701151137,7.62919333,2513.5,2513.4,4.37653]
[1729701151138,3.2078,2513.5,2513.4,4.37653]
[1729701151632,3.2078,2513.8,2513.4,3.9784]
[1729701151846,3.2078,2513.8,2513.3,40.8]
[1729701152046,4.14596557,2513.7,2513.6,0.39809]
[1729701152247,3.2078,2514.9,2513.6,4.3]
[1729701152545,4.14596557,2514.6,2514.1,4.3]
[1729701152749,4.14596557,2514.6,2514.5,0.39795]
[1729701153041,5.99626557,2515.0,2514.3,3.2078]
[1729701153042,2.24818,2515.0,2514.3,3.2078]
[1729701153244,1.9022,2515.1,2514.8,0.3979]
[1729701153448,4.20924252,2514.9,2514.4,4.3]
[1729701155344,4.55941942,2515.0,2514.6,3.2078]
[1729701155544,4.55941942,2515.0,2514.7,0.39791]
[1729701155742,4.55941942,2515.0,2514.7,0.3979]
[1729701156237,4.55941942,2515.0,2514.8,0.3979]
[1729701156438,4.55941942,2515.0,2514.6,3.2078]
[1729701156638,3.2078,2515.1,2514.9,0.39788]
[1729701156940,5.0779,2515.6,2514.9,0.39788]
[1729701157144,3.2078,2515.3,2514.9,0.39788]
[1729701157341,4.22188346,2515.2,2515.0,40.8]
[1729701157649,3.60563,2515.3,2515.0,40.8]
[1729701157950,4.35848564,2515.1,2515.0,40.8]
[1729701158150,4.35848564,2515.2,2515.0,40.8]
[1729701158449,3.60564,2515.3,2515.0,44.776]
[1729701158642,3.60564,2515.3,2515.0,40.8]
[1729701158949,4.59732887,2515.2,2515.0,40.8]
[1729701159144,4.19947887,2515.2,2515.0,40.8]
[1729701159346,0.39786,2515.1,2515.0,40.8]
[1729701159545,4.19947887,2515.2,2515.1,0.39786]
[1729701159845,1.8895,2515.7,2515.1,8.276]
[1729701160050,3.60552,2516.0,2515.6,0.39778]
[1729701160247,3.60552,2516.0,2515.2,3.2078]
[1729701160449,3.2078,2515.7,2515.5,0.39778]
[1729701160746,3.60552,2516.0,2515.7,0.39776]
[1729701161054,1.961,2516.2,2515.0,45.00249]
[1729701161055,4.16805081,2515.6,2515.5,0.39779]
[1729701161349,4.16805081,2516.1,2515.5,7.5078]
[1729701161539,4.16805081,2516.1,2516.0,0.39771]
[1729701161741,3.2078,2516.4,2516.3,0.39767]
[1729701162049,4.45924871,2516.3,2515.4,0.99451]
[1729701162239,0.39769,2516.2,2515.9,0.39772]
[1729701162442,7.66704871,2516.4,2516.0,41.1977]
[1729701162443,3.60546,2516.4,2516.0,41.1977]
[1729701162748,4.45924871,2516.1,2516.0,41.1977]
[1729701163052,3.2078,2516.4,2516.0,41.19771]
[1729701163053,3.60546,2516.4,2516.0,41.19771]
[1729701163247,3.2078,2516.4,2516.0,40.8]
[1729701163457,4.2061041,2516.3,2516.2,0.39768]
[1729701163750,4.6037641,2516.4,2516.1,0.39769]
[1729701163945,4.2061041,2516.4,2516.0,44.0078]
[1729701164250,4.84901123,2516.4,2516.1,0.39769]
[1729701164444,4.45135123,2516.4,2516.0,40.8]
[1729701164648,3.2078,2516.4,2516.0,40.8]
[1729701164949,4.3234619,2516.3,2516.2,0.39767]
[1729701165350,4.3234619,2516.3,2516.2,0.39768]
[1729701165657,3.2078,2516.4,2516.2,3.9744]
[1729701165856,3.2078,2516.4,2516.2,0.39767]
[1729701166153,3.2078,2516.4,2516.3,0.39767]
[1729701166553,3.2078,2516.4,2516.3,4.37207]
[1729701166745,2.95801,2517.5,2516.4,0.99413]
[1729701166746,1.938,2517.2,2516.4,0.99413]
[1729701166941,1.938,2517.2,2517.1,0.39754]
[1729701167144,4.3,2518.1,2516.6,0.99404]
[1729701167145,3.2078,2517.7,2517.0,0.39756]
[1729701167343,3.2078,2517.8,2517.1,0.99386]
[1729701167543,3.2078,2517.8,2516.5,1.98818]
[1729701167544,6.47594846,2517.9,2517.8,0.39743]
[1729701167744,4.53574846,2517.9,2517.8,0.39743]
[1729701167944,3.2078,2518.4,2517.8,44.772]
[1729701168148,0.39735,2518.3,2518.1,0.39738]
[1729701168460,4.37238583,2518.3,2517.8,40.8]
[1729701168654,4.37238583,2518.3,2518.2,0.39737]
[1729701168848,1.7821,2518.9,2518.2,8.50121]
[1729701169049,1.7821,2518.9,2518.8,0.39727]
[1729701169249,3.60502,2519.2,2518.5,3.2078]
[1729701169453,3.60502,2519.2,2518.6,0.3973]
[1729701169454,0.39725,2519.0,2518.6,0.3973]
[1729701169657,4.20288209,2519.0,2518.5,3.2078]
[1729701169858,4.20288209,2519.1,2518.9,0.39726]
[1729701170052,3.2078,2519.2,2519.0,0.39724]
[1729701170556,4.33347647,2519.1,2519.0,0.39724]
[1729701171057,3.2078,2519.2,2519.1,0.39722]
[1729701171257,3.2078,2519.2,2518.6,4.3]
[1729701171258,3.2078,2519.2,2518.9,0.0992]
[1729701171453,3.2078,2519.2,2519.1,0.39722]
[1729701171956,3.2078,2519.2,2519.1,4.36682]
[1729701172254,3.60495,2519.6,2519.3,0.39719]
[1729701172457,3.2078,2519.6,2518.9,0.0992]
[1729701172660,0.3972,2519.3,2518.9,0.49645]
[1729701173058,3.2078,2519.6,2518.9,0.0992]
[1729701173559,4.71219,2519.9,2518.8,0.39726]
[1729701173560,0.39723,2519.1,2518.8,0.39726]
[1729701173754,3.2078,2519.3,2518.8,0.39726]
[1729701173956,3.2078,2519.3,2518.3,1.8823]
[1729701174261,0.39724,2519.0,2518.8,0.0992]
[1729701174562,0.39724,2519.1,2518.8,0.0992]
[1729701174756,0.39724,2519.1,2518.8,0.49647]
[1729701174956,0.39724,2519.1,2518.8,0.0992]
[1729701175158,4.48663787,2519.2,2518.8,0.49646]
[1729701175460,0.39723,2519.1,2518.8,0.49646]
[1729701175656,4.48663787,2519.2,2518.8,0.0992]
[1729701175855,4.48663787,2519.2,2519.0,0.39724]
[1729701176059,4.48663787,2519.2,2518.8,0.0992]
[1729701176660,0.39723,2519.1,2518.8,0.49646]
[1729701176854,4.88385787,2519.2,2518.9,0.39725]
[1729701177054,4.48663787,2519.2,2518.8,0.0992]
[1729701177259,0.39723,2519.1,2518.8,0.49646]
[1729701177855,3.2078,2519.0,2518.8,0.0992]
[1729701178056,3.2078,2519.0,2518.2,3.2078]
[1729701178057,11.42989809,2519.0,2518.2,3.2078]
[1729701178360,11.42989809,2519.0,2518.3,0.39735]
[1729701178361,0.39731,2518.6,2518.3,0.39735]
[1729701178858,3.2078,2518.7,2518.2,3.2295]
[1729701179062,3.6051,2518.7,2518.4,0.39733]
[1729701179261,4.4197432,2518.6,2518.5,0.39732]
[1729701179963,4.8170532,2518.6,2518.4,0.39733]
[1729701180160,0.39733,2518.5,2518.3,0.39734]
[1729701180360,3.2078,2518.4,2517.3,3.2078]
[1729701180561,7.62062249,2518.4,2517.3,3.2078]
[1729701180755,3.2078,2518.0,2517.4,45.1]
[1729701181069,3.2078,2518.0,2517.8,0.39742]
[1729701181257,3.2078,2518.0,2517.4,45.1]
[1729701181463,3.2078,2518.0,2517.9,0.39741]
[1729701181956,3.2078,2518.0,2517.9,4.36861]
[1729701182162,0.39732,2518.6,2518.4,0.39733]
[1729701182561,4.25529942,2518.5,2518.4,0.39733]
[1729701182764,4.65262942,2518.5,2517.9,3.2078]
[1729701182961,0.39735,2518.4,2518.1,0.39737]
[1729701183162,3.2078,2518.6,2517.9,3.2078]
[1729701183360,0.39733,2518.5,2518.2,0.39736]
[1729701183561,0.39734,2518.4,2518.2,0.39736]
[1729701183765,0.39735,2518.4,2518.1,0.39737]
[1729701184071,7.34951161,2518.3,2517.4,48.3078]
[1729701184261,0.39748,2517.5,2517.2,3.2078]
[1729701184461,0.39756,2517.0,2516.8,3.60538]
[1729701184767,3.2078,2517.3,2516.4,40.8]
[1729701184964,4.32422331,2517.4,2515.7,5.29439]
[1729701184965,3.98731321,2516.9,2515.7,5.29439]
[1729701185171,3.2078,2516.7,2515.7,4.3]
[1729701185668,3.2078,2516.4,2515.8,0.39774]
[1729701185863,3.2078,2516.4,2515.6,3.2078]
[1729701185864,0.39769,2516.2,2515.6,3.2078]
[1729701186059,0.39776,2515.7,2515.6,3.2078]
[1729701186258,0.39776,2515.7,2515.3,1.55869503]
[1729701186259,3.2078,2515.7,2515.3,1.55869503]
[1729701186464,0.39779,2515.6,2515.3,1.95651503]
[1729701186666,0.39779,2515.6,2515.3,42.75651503]
[1729701186868,7.37324928,2515.7,2515.6,0.39778]
[1729701187067,4.16544928,2515.7,2515.3,42.35869503]
[1729701187372,3.2078,2515.7,2515.3,42.35869503]
[1729701187668,3.2078,2515.7,2515.4,0.3978]
[1729701187871,3.60557,2515.7,2515.4,0.3978]
[1729701188179,4.29471438,2515.6,2515.4,0.3978]
[1729701188367,4.29471438,2515.6,2515.5,0.39779]
[1729701188668,3.2078,2515.7,2515.5,0.39779]
[1729701188864,3.2078,2515.7,2515.3,40.8]
[1729701189067,3.2078,2515.7,2515.6,0.39778]
[1729701189762,3.2078,2516.0,2515.9,0.39773]
[1729701190067,3.2078,2516.0,2515.4,4.2023]
[1729701190259,3.2078,2516.0,2515.4,3.2078]
[1729701190570,7.73188936,2516.0,2515.8,0.39773]
[1729701190767,7.73188936,2516.0,2515.9,0.39773]
[1729701190973,3.2078,2516.0,2515.9,0.39773]
[1729701191163,7.83278227,2516.0,2515.7,0.39776]
[1729701191364,4.22725227,2516.0,2515.2,4.3]
[1729701191664,3.60553,2515.9,2515.6,0.39777]
[1729701191868,3.60553,2515.9,2515.1,0.99461]
[1729701191869,0.39775,2515.8,2515.1,0.39784]
[1729701192072,1.8123,2515.7,2515.5,0.39779]
[1729701192458,4.18584245,2515.6,2515.5,0.39779]
[1729701192971,3.19054821,2515.6,2515.5,4.37299]
[1729701193269,3.2078,2515.9,2515.5,3.9752]
[1729701193477,3.2078,2515.9,2515.8,0.39775]
[1729701194279,3.2078,2515.9,2515.8,41.19775]
[1729701196578,3.60553,2515.9,2515.8,40.8]
[1729701196773,3.60553,2515.9,2515.1,4.20245]
[1729701196774,3.2078,2515.9,2515.1,4.20245]
[1729701197075,3.2078,2515.9,2515.5,0.39779]
[1729701197278,1.7964,2516.3,2515.1,3.2078]
[1729701197279,0.39783,2515.3,2515.1,3.2078]
[1729701197470,3.2078,2515.3,2515.1,0.39786]
[1729701197675,0.39786,2515.1,2514.6,3.2078]
[1729701197875,4.67345858,2515.2,2514.9,0.39788]
[1729701198071,4.67345858,2515.2,2514.9,0.39787]
[1729701198376,4.27560858,2515.2,2515.1,0.39786]
[1729701198787,3.2078,2515.3,2515.1,40.8]
[1729701199081,3.2078,2515.3,2514.6,4.20264]
[1729701199275,4.31489668,2515.2,2515.1,0.39784]
[1729701199671,4.31489668,2515.2,2514.8,40.8]
[1729701199870,4.31489668,2515.2,2515.1,0.39786]
[1729701201379,3.2078,2515.3,2515.2,0.39784]
[1729701201777,1.9703,2515.6,2515.5,0.39779]
[1729701201975,3.2078,2515.9,2515.5,0.39779]
[1729701202176,3.2078,2515.9,2515.8,0.39775]
[1729701202974,5.0429,2516.3,2515.9,0.39772]
[1729701203282,5.0429,2516.3,2515.4,0.99452]
[1729701203283,4.38637465,2516.1,2515.4,0.99452]
[1729701203475,0.39778,2515.6,2515.4,0.3978]
[1729701203789,0.39775,2515.8,2515.6,0.39777]
[1729701203981,3.2078,2516.0,2514.9,6.0543]
[1729701204278,0.3978,2515.5,2515.3,0.39781]
[1729701204473,5.48847,2515.7,2515.5,0.39778]
[1729701204875,4.48058136,2515.6,2515.5,0.39778]
[1729701205069,4.48058136,2515.6,2515.1,0.99463]
[1729701205275,5.0907,2515.7,2515.2,3.2078]
[1729701205580,5.0907,2515.7,2515.6,0.39778]
[1729701206682,3.2078,2516.0,2515.9,0.39773]
[1729701206875,1.8351,2516.3,2516.2,0.39768]
[1729701207174,6.44449462,2516.3,2516.2,0.39768]
[1729701207686,1.8058,2516.7,2515.9,0.99431]
[1729701207687,0.39765,2516.4,2515.9,0.99431]
[1729701207880,0.39763,2516.6,2516.0,0.99428]
[1729701208180,4.1790615,2516.4,2516.3,0.39767]
[1729701208380,4.1790615,2516.4,2516.0,0.99428]
[1729701208381,4.1790615,2516.6,2516.0,0.99428]
[1729701208587,1.8058,2516.7,2516.4,0.39765]
[1729701208588,0.39764,2516.5,2516.4,0.39765]
[1729701208877,1.8058,2516.7,2516.6,0.39762]
[1729701209283,6.07674912,2516.7,2516.6,0.39762]
[1729701209678,6.07674912,2516.7,2516.2,0.99419]
[1729701209679,6.47435912,2516.7,2516.5,0.39763]
[1729701209884,6.47435912,2516.7,2516.2,0.99419]
[1729701210081,0.39765,2516.5,2516.3,0.39766]
[1729701210285,0.39763,2516.6,2516.4,0.39764]
[1729701210473,6.07674912,2516.7,2516.6,0.39762]
[1729701210678,6.47436912,2516.7,2516.5,0.39763]
[1729701210973,4.27094912,2516.7,2516.6,0.39762]
[1729701211173,5.29372,2517.5,2516.3,0.99416]
[1729701211174,3.2078,2517.1,2516.4,3.2078]
[1729701211374,3.2078,2517.1,2516.7,0.3976]
[1729701211375,0.39758,2516.9,2516.7,0.3976]